[Event "Titled Tuesday Blitz January 10 Early 2023"]
[White "Bacrot, Etienne"]
[Black "Hirneise, Jens"]
[WhiteFideId "605506"]
[BlackFideId "24614734"]
[WhiteElo "2667"]
[BlackElo "2277"]
[Result "1-0"]
[Round "02"]
[TimeControl "180+2"]
[Date "2023.01.10"]
[WhiteClock "0:00:08"]
[BlackClock "0:00:21"]

1. e4 {[%clk 0:03:00]}  c5 {[%clk 0:02:53]} 2. Nf3 {[%clk 0:03:01]}  Nc6 {[%clk 0:02:50]} 3. Bb5 {[%clk 0:03:00]}  e6 {[%clk 0:02:49]} 4. O-O {[%clk 0:03:00]}  Nge7 {[%clk 0:02:49]} 5. Re1 {[%clk 0:03:00]}  g6 {[%clk 0:02:49]} 6. c3 {[%clk 0:02:48]}  Bg7 {[%clk 0:02:46]} 7. d4 {[%clk 0:02:48]}  cxd4 {[%clk 0:02:46]} 8. cxd4 {[%clk 0:02:48]}  a6 {[%clk 0:02:40]} 9. Bf1 {[%clk 0:02:42]}  d5 {[%clk 0:02:37]} 10. e5 {[%clk 0:02:42]}  Bd7 {[%clk 0:02:35]} 11. Nc3 {[%clk 0:02:36]}  b5 {[%clk 0:02:33]} 12. h4 {[%clk 0:02:31]}  h6 {[%clk 0:02:28]} 13. a3 {[%clk 0:02:25]}  Na5 {[%clk 0:02:19]} 14. g3 {[%clk 0:02:20]}  Qb6 {[%clk 0:02:15]} 15. Na2 {[%clk 0:02:05]}  Rc8 {[%clk 0:02:09]} 16. Nb4 {[%clk 0:02:01]}  Nac6 {[%clk 0:02:01]} 17. Nc2 {[%clk 0:01:53]}  Na5 {[%clk 0:01:55]} 18. Ne3 {[%clk 0:01:42]}  Nec6 {[%clk 0:01:42]} 19. Ng4 {[%clk 0:01:27]}  Qd8 {[%clk 0:01:39]} 20. b3 {[%clk 0:01:21]}  Qb6 {[%clk 0:01:20]} 21. Bf4 {[%clk 0:01:11]}  Kd8 {[%clk 0:01:12]} 22. Nf6 {[%clk 0:01:04]}  Kc7 {[%clk 0:01:11]} 23. Rc1 {[%clk 0:01:00]}  Kd8 {[%clk 0:01:03]} 24. Qd3 {[%clk 0:00:42]}  Ne7 {[%clk 0:00:58]} 25. Rc5 {[%clk 0:00:32]}  Nb7 {[%clk 0:00:57]} 26. Rxc8+ {[%clk 0:00:30]}  Bxc8 {[%clk 0:00:57]} 27. Rc1 {[%clk 0:00:30]}  Bd7 {[%clk 0:00:53]} 28. Bd2 {[%clk 0:00:25]}  Nc6 {[%clk 0:00:53]} 29. Bh3 {[%clk 0:00:23]}  Bxf6 {[%clk 0:00:52]} 30. exf6 {[%clk 0:00:23]}  Nd6 {[%clk 0:00:52]} 31. Be3 {[%clk 0:00:14]}  a5 {[%clk 0:00:38]} 32. Ne5 {[%clk 0:00:14]}  Be8 {[%clk 0:00:39]} 33. Bf4 {[%clk 0:00:12]}  Ne4 {[%clk 0:00:33]} 34. Rxc6 {[%clk 0:00:10]}  Bxc6 {[%clk 0:00:34]} 35. Nxf7+ {[%clk 0:00:10]}  Ke8 {[%clk 0:00:34]} 36. Nxh8 {[%clk 0:00:10]}  b4 {[%clk 0:00:32]} 37. a4 {[%clk 0:00:10]}  g5 {[%clk 0:00:30]} 38. hxg5 {[%clk 0:00:09]}  hxg5 {[%clk 0:00:31]} 39. Be5 {[%clk 0:00:06]}  Kf8 {[%clk 0:00:27]} 40. Bxe6 {[%clk 0:00:05]}  Be8 {[%clk 0:00:26]} 41. Bxd5 {[%clk 0:00:05]}  Nxf6 {[%clk 0:00:25]} 42. Qf3 {[%clk 0:00:04]}  Kg7 {[%clk 0:00:24]} 43. Bc4 {[%clk 0:00:05]}  Kxh8 {[%clk 0:00:17]} 44. Qxf6+ {[%clk 0:00:04]}  Qxf6 {[%clk 0:00:17]} 45. Bxf6+ {[%clk 0:00:05]}  Kh7 {[%clk 0:00:17]} 46. Bxg5 {[%clk 0:00:06]}  Kg6 {[%clk 0:00:18]} 47. Bc1 {[%clk 0:00:06]}  Bd7 {[%clk 0:00:18]} 48. Bb2 {[%clk 0:00:07]}  Kf6 {[%clk 0:00:19]} 49. f3 {[%clk 0:00:07]}  Kg5 {[%clk 0:00:20]} 50. Kf2 {[%clk 0:00:08]}  Kf6 {[%clk 0:00:21]} 51. Ke3 {[%clk 0:00:08]} 1-0


[Site "https://www.chess.com"]

[Event "Titled Tuesday Blitz January 10 Early 2023"]
[White "Harsh Suresh"]
[Black "Di Nicolantonio, Lucas"]
[WhiteFideId "45018464"]
[BlackFideId "680460"]
[WhiteElo "2298"]
[BlackElo "2376"]
[Result "1-0"]
[Round "02"]
[TimeControl "180+2"]
[Date "2023.01.10"]
[WhiteClock "0:00:05"]
[BlackClock "0:00:04"]

1. e4 {[%clk 0:03:00]}  g6 {[%clk 0:02:58]} 2. d4 {[%clk 0:02:52]}  Bg7 {[%clk 0:02:58]} 3. c3 {[%clk 0:02:52]}  d6 {[%clk 0:02:55]} 4. Bd3 {[%clk 0:02:50]}  Nf6 {[%clk 0:02:53]} 5. Ne2 {[%clk 0:02:49]}  Nc6 {[%clk 0:02:51]} 6. O-O {[%clk 0:02:49]}  e5 {[%clk 0:02:51]} 7. Nd2 {[%clk 0:02:46]}  O-O {[%clk 0:02:51]} 8. h3 {[%clk 0:02:45]}  Re8 {[%clk 0:02:47]} 9. Re1 {[%clk 0:02:43]}  h6 {[%clk 0:02:42]} 10. Nf3 {[%clk 0:02:43]}  exd4 {[%clk 0:02:38]} 11. Nexd4 {[%clk 0:02:43]}  Ne5 {[%clk 0:02:30]} 12. Nxe5 {[%clk 0:02:42]}  dxe5 {[%clk 0:02:27]} 13. Nf3 {[%clk 0:02:42]}  Qe7 {[%clk 0:02:20]} 14. Bc4 {[%clk 0:02:22]}  Bd7 {[%clk 0:02:12]} 15. Qb3 {[%clk 0:02:01]}  Bc6 {[%clk 0:02:03]} 16. Nxe5 {[%clk 0:02:01]}  Qxe5 {[%clk 0:02:00]} 17. Bxf7+ {[%clk 0:02:01]}  Kh7 {[%clk 0:02:01]} 18. f4 {[%clk 0:01:55]}  Qh5 {[%clk 0:01:31]} 19. Bxe8 {[%clk 0:01:50]}  Rxe8 {[%clk 0:01:30]} 20. e5 {[%clk 0:01:49]}  Qh4 {[%clk 0:01:26]} 21. Qd1 {[%clk 0:01:21]}  Qg3 {[%clk 0:01:19]} 22. Re2 {[%clk 0:01:20]}  Nd5 {[%clk 0:00:58]} 23. Qe1 {[%clk 0:01:18]}  Nxf4 {[%clk 0:00:59]} 24. Bxf4 {[%clk 0:01:13]}  Qxf4 {[%clk 0:00:59]} 25. e6 {[%clk 0:01:12]}  Qg5 {[%clk 0:00:54]} 26. Qf2 {[%clk 0:01:02]}  Rf8 {[%clk 0:00:42]} 27. Qe3 {[%clk 0:01:01]}  Qd5 {[%clk 0:00:39]} 28. e7 {[%clk 0:00:55]}  Re8 {[%clk 0:00:39]} 29. Rf1 {[%clk 0:00:54]}  Bb5 {[%clk 0:00:26]} 30. Rd2 {[%clk 0:00:41]}  Qg5 {[%clk 0:00:25]} 31. Qxg5 {[%clk 0:00:36]}  hxg5 {[%clk 0:00:26]} 32. Re1 {[%clk 0:00:35]}  Bf6 {[%clk 0:00:25]} 33. c4 {[%clk 0:00:19]}  Bc6 {[%clk 0:00:25]} 34. b4 {[%clk 0:00:19]}  Bxe7 {[%clk 0:00:22]} 35. Rde2 {[%clk 0:00:18]}  Bxb4 {[%clk 0:00:05]} 36. Rxe8 {[%clk 0:00:17]}  Bxe1 {[%clk 0:00:04]} 37. Rxe1 {[%clk 0:00:18]}  Kg7 {[%clk 0:00:05]} 38. Re7+ {[%clk 0:00:18]}  Kf6 {[%clk 0:00:05]} 39. Rxc7 {[%clk 0:00:19]}  Ke5 {[%clk 0:00:05]} 40. Rg7 {[%clk 0:00:17]}  Be4 {[%clk 0:00:05]} 41. Kf2 {[%clk 0:00:16]}  Kd4 {[%clk 0:00:06]} 42. Kg3 {[%clk 0:00:11]}  Kxc4 {[%clk 0:00:05]} 43. Kg4 {[%clk 0:00:11]}  Bxg2 {[%clk 0:00:05]} 44. Rxg6 {[%clk 0:00:11]}  Kb4 {[%clk 0:00:04]} 45. Rxg5 {[%clk 0:00:11]}  b5 {[%clk 0:00:04]} 46. h4 {[%clk 0:00:11]}  Be4 {[%clk 0:00:03]} 47. h5 {[%clk 0:00:11]}  a6 {[%clk 0:00:02]} 48. h6 {[%clk 0:00:11]}  Ka3 {[%clk 0:00:02]} 49. Rf5 {[%clk 0:00:11]}  Bxf5+ {[%clk 0:00:01]} 50. Kxf5 {[%clk 0:00:12]}  Kxa2 {[%clk 0:00:02]} 51. h7 {[%clk 0:00:12]}  b4 {[%clk 0:00:03]} 52. h8=Q {[%clk 0:00:13]}  b3 {[%clk 0:00:04]} 53. Qg8 {[%clk 0:00:07]}  a5 {[%clk 0:00:04]} 54. Ke4 {[%clk 0:00:04]}  a4 {[%clk 0:00:05]} 55. Kd3 {[%clk 0:00:04]}  Ka1 {[%clk 0:00:05]} 56. Qg7+ {[%clk 0:00:02]}  b2 {[%clk 0:00:05]} 57. Kc2 {[%clk 0:00:03]}  a3 {[%clk 0:00:05]} 58. Qg1+ {[%clk 0:00:04]}  Ka2 {[%clk 0:00:04]} 59. Qb1# {[%clk 0:00:05]} 1-0


[Site "https://www.chess.com"]

[Event "Titled Tuesday Blitz January 10 Early 2023"]
[White "Manukyan, Sargis A."]
[Black "Demchenko, Anton"]
[WhiteFideId "13303970"]
[BlackFideId "4160258"]
[WhiteElo "2158"]
[BlackElo "2623"]
[Result "0-1"]
[Round "02"]
[TimeControl "180+2"]
[Date "2023.01.10"]
[WhiteClock "0:00:11"]
[BlackClock "0:00:29"]

1. d4 {[%clk 0:03:00]}  Nf6 {[%clk 0:02:58]} 2. c4 {[%clk 0:02:56]}  d6 {[%clk 0:02:58]} 3. Nf3 {[%clk 0:02:55]}  Nc6 {[%clk 0:02:54]} 4. Nc3 {[%clk 0:02:53]}  e5 {[%clk 0:02:54]} 5. dxe5 {[%clk 0:02:54]}  dxe5 {[%clk 0:02:52]} 6. Qxd8+ {[%clk 0:02:55]}  Kxd8 {[%clk 0:02:53]} 7. a3 {[%clk 0:02:52]}  Be6 {[%clk 0:02:44]} 8. e3 {[%clk 0:02:52]}  h6 {[%clk 0:02:42]} 9. b4 {[%clk 0:02:49]}  Nd7 {[%clk 0:02:33]} 10. Bb2 {[%clk 0:02:48]}  f6 {[%clk 0:02:23]} 11. O-O-O {[%clk 0:02:45]}  Kc8 {[%clk 0:02:23]} 12. Be2 {[%clk 0:02:42]}  a5 {[%clk 0:02:14]} 13. b5 {[%clk 0:02:36]}  Ncb8 {[%clk 0:02:15]} 14. Na4 {[%clk 0:02:30]}  Nc5 {[%clk 0:02:08]} 15. Nxc5 {[%clk 0:02:27]}  Bxc5 {[%clk 0:02:09]} 16. Nd2 {[%clk 0:02:25]}  Nd7 {[%clk 0:02:05]} 17. Ne4 {[%clk 0:02:22]}  Bb6 {[%clk 0:01:58]} 18. g4 {[%clk 0:02:12]}  Nc5 {[%clk 0:01:40]} 19. Nxc5 {[%clk 0:02:10]}  Bxc5 {[%clk 0:01:41]} 20. a4 {[%clk 0:01:58]}  c6 {[%clk 0:01:40]} 21. bxc6 {[%clk 0:01:46]}  bxc6 {[%clk 0:01:40]} 22. Bc3 {[%clk 0:01:43]}  Kc7 {[%clk 0:01:29]} 23. Kc2 {[%clk 0:01:43]}  Bb4 {[%clk 0:01:17]} 24. Rb1 {[%clk 0:01:31]}  c5 {[%clk 0:01:14]} 25. Bb2 {[%clk 0:01:11]}  Bd7 {[%clk 0:01:12]} 26. Ra1 {[%clk 0:01:11]}  Bc6 {[%clk 0:01:12]} 27. f3 {[%clk 0:01:10]}  Rad8 {[%clk 0:01:06]} 28. Bc1 {[%clk 0:00:56]}  h5 {[%clk 0:01:02]} 29. g5 {[%clk 0:00:34]}  fxg5 {[%clk 0:01:02]} 30. Rg1 {[%clk 0:00:31]}  g4 {[%clk 0:01:02]} 31. e4 {[%clk 0:00:24]}  Rhf8 {[%clk 0:00:59]} 32. Be3 {[%clk 0:00:20]}  gxf3 {[%clk 0:00:49]} 33. Rxg7+ {[%clk 0:00:21]}  Kb6 {[%clk 0:00:49]} 34. Bd3 {[%clk 0:00:21]}  Rxd3 {[%clk 0:00:43]} 35. Kxd3 {[%clk 0:00:21]}  Rd8+ {[%clk 0:00:44]} 36. Kc2 {[%clk 0:00:21]}  Bxe4+ {[%clk 0:00:45]} 37. Kb3 {[%clk 0:00:20]}  Rd3+ {[%clk 0:00:44]} 38. Kb2 {[%clk 0:00:19]}  Bc3+ {[%clk 0:00:38]} 39. Ka2 {[%clk 0:00:14]}  Rxe3 {[%clk 0:00:33]} 40. Rd1 {[%clk 0:00:12]}  Re2+ {[%clk 0:00:32]} 41. Ka3 {[%clk 0:00:11]}  Bb4+ {[%clk 0:00:29]} 0-1


[Site "https://www.chess.com"]

[Event "Titled Tuesday Blitz January 10 Early 2023"]
[White "Pakleza, Zbigniew"]
[Black "Fiorito, Francisco"]
[WhiteFideId "1119290"]
[BlackFideId "180165"]
[WhiteElo "2494"]
[BlackElo "2305"]
[Result "1-0"]
[Round "02"]
[TimeControl "180+2"]
[Date "2023.01.10"]
[WhiteClock "0:00:06"]
[BlackClock "0:00:02"]

1. d4 {[%clk 0:03:00]}  Nf6 {[%clk 0:02:58]} 2. Nf3 {[%clk 0:03:00]}  g6 {[%clk 0:02:54]} 3. Bf4 {[%clk 0:03:00]}  Bg7 {[%clk 0:02:54]} 4. e3 {[%clk 0:03:00]}  O-O {[%clk 0:02:54]} 5. Be2 {[%clk 0:03:01]}  d6 {[%clk 0:02:53]} 6. h3 {[%clk 0:03:01]}  Nbd7 {[%clk 0:02:53]} 7. O-O {[%clk 0:03:01]}  Qe8 {[%clk 0:02:54]} 8. c4 {[%clk 0:03:01]}  e5 {[%clk 0:02:53]} 9. Bh2 {[%clk 0:03:02]}  Ne4 {[%clk 0:02:52]} 10. Nbd2 {[%clk 0:02:53]}  Nxd2 {[%clk 0:02:39]} 11. Qxd2 {[%clk 0:02:54]}  Qe7 {[%clk 0:02:37]} 12. Rac1 {[%clk 0:02:50]}  b6 {[%clk 0:02:27]} 13. b4 {[%clk 0:02:34]}  Bb7 {[%clk 0:02:23]} 14. c5 {[%clk 0:02:25]}  bxc5 {[%clk 0:02:16]} 15. bxc5 {[%clk 0:02:21]}  dxc5 {[%clk 0:01:39]} 16. dxc5 {[%clk 0:02:22]}  Bc6 {[%clk 0:01:27]} 17. Qa5 {[%clk 0:02:20]}  Rfc8 {[%clk 0:00:20]} 18. Rfd1 {[%clk 0:02:10]}  a6 {[%clk 0:00:18]} 19. Nd2 {[%clk 0:02:00]}  Nf6 {[%clk 0:00:16]} 20. Nb3 {[%clk 0:01:30]}  Nd5 {[%clk 0:00:16]} 21. Qe1 {[%clk 0:01:17]}  Rd8 {[%clk 0:00:15]} 22. Na5 {[%clk 0:01:15]}  Ba4 {[%clk 0:00:15]} 23. Rd2 {[%clk 0:01:08]}  e4 {[%clk 0:00:15]} 24. Bc4 {[%clk 0:00:42]}  Qxc5 {[%clk 0:00:13]} 25. Bxd5 {[%clk 0:00:32]}  Rxd5 {[%clk 0:00:11]} 26. Rxc5 {[%clk 0:00:28]}  Rxc5 {[%clk 0:00:12]} 27. Nb3 {[%clk 0:00:22]}  Rc6 {[%clk 0:00:08]} 28. Qd1 {[%clk 0:00:19]}  Bc3 {[%clk 0:00:07]} 29. Rd8+ {[%clk 0:00:18]}  Rxd8 {[%clk 0:00:08]} 30. Qxd8+ {[%clk 0:00:19]}  Kg7 {[%clk 0:00:09]} 31. Bg3 {[%clk 0:00:16]}  Bf6 {[%clk 0:00:09]} 32. Qa8 {[%clk 0:00:12]}  Rc2 {[%clk 0:00:08]} 33. Qxa6 {[%clk 0:00:10]}  Bd7 {[%clk 0:00:08]} 34. Nd4 {[%clk 0:00:07]}  Rc1+ {[%clk 0:00:08]} 35. Kh2 {[%clk 0:00:07]}  h5 {[%clk 0:00:08]} 36. Bf4 {[%clk 0:00:07]}  g5 {[%clk 0:00:08]} 37. Bxg5 {[%clk 0:00:04]}  Bxg5 {[%clk 0:00:08]} 38. Qa5 {[%clk 0:00:04]}  Kg6 {[%clk 0:00:06]} 39. Qa6+ {[%clk 0:00:03]}  Bf6 {[%clk 0:00:07]} 40. Qa3 {[%clk 0:00:04]}  Be5+ {[%clk 0:00:06]} 41. g3 {[%clk 0:00:03]}  c5 {[%clk 0:00:07]} 42. Qxc1 {[%clk 0:00:03]}  cxd4 {[%clk 0:00:05]} 43. exd4 {[%clk 0:00:04]}  Bxd4 {[%clk 0:00:06]} 44. Qd2 {[%clk 0:00:05]}  Bc6 {[%clk 0:00:01]} 45. Qxd4 {[%clk 0:00:05]}  e3 {[%clk 0:00:02]} 46. Qxe3 {[%clk 0:00:05]}  Kg7 {[%clk 0:00:02]} 47. Qc3+ {[%clk 0:00:06]} 1-0


[Site "https://www.chess.com"]

[Event "Titled Tuesday Blitz January 10 Early 2023"]
[White "Fayzullaev, Akmal"]
[Black "Galchenko, Matvey"]
[WhiteFideId "14200554"]
[BlackFideId "24175480"]
[WhiteElo "2391"]
[BlackElo "2438"]
[Result "0-1"]
[Round "02"]
[TimeControl "180+2"]
[Date "2023.01.10"]
[WhiteClock "0:00:02"]
[BlackClock "0:00:21"]

1. e4 {[%clk 0:03:00]}  e6 {[%clk 0:02:59]} 2. d4 {[%clk 0:02:59]}  d5 {[%clk 0:02:59]} 3. Nd2 {[%clk 0:02:59]}  a6 {[%clk 0:02:47]} 4. Ngf3 {[%clk 0:02:50]}  Nf6 {[%clk 0:02:46]} 5. Bd3 {[%clk 0:02:44]}  c5 {[%clk 0:02:46]} 6. e5 {[%clk 0:02:39]}  Nfd7 {[%clk 0:02:45]} 7. c3 {[%clk 0:02:39]}  Nc6 {[%clk 0:02:46]} 8. O-O {[%clk 0:02:35]}  g5 {[%clk 0:02:45]} 9. c4 {[%clk 0:02:11]}  g4 {[%clk 0:02:21]} 10. cxd5 {[%clk 0:02:10]}  exd5 {[%clk 0:02:22]} 11. Ne1 {[%clk 0:01:45]}  Nxd4 {[%clk 0:02:19]} 12. Nb3 {[%clk 0:01:17]}  Nxb3 {[%clk 0:02:05]} 13. axb3 {[%clk 0:01:14]}  Nxe5 {[%clk 0:02:05]} 14. Bf4 {[%clk 0:01:10]}  Bg7 {[%clk 0:02:00]} 15. Bb5+ {[%clk 0:00:48]}  Nc6 {[%clk 0:01:36]} 16. Be2 {[%clk 0:00:32]}  h5 {[%clk 0:01:19]} 17. Nd3 {[%clk 0:00:25]}  c4 {[%clk 0:00:32]} 18. Nc1 {[%clk 0:00:15]}  Bxb2 {[%clk 0:00:29]} 19. Rb1 {[%clk 0:00:13]}  Qf6 {[%clk 0:00:25]} 20. Bd2 {[%clk 0:00:05]}  c3 {[%clk 0:00:24]} 21. Nd3 {[%clk 0:00:05]}  Bf5 {[%clk 0:00:20]} 22. Rxb2 {[%clk 0:00:03]}  cxb2 {[%clk 0:00:21]} 23. Qb1 {[%clk 0:00:02]}  O-O {[%clk 0:00:20]} 24. Qxb2 {[%clk 0:00:01]}  Qxb2 {[%clk 0:00:20]} 25. Nxb2 {[%clk 0:00:02]}  Rfe8 {[%clk 0:00:21]} 0-1


[Site "https://www.chess.com"]

[Event "Titled Tuesday Blitz January 10 Early 2023"]
[White "Samadov, Read"]
[Black "Bilan, Danila"]
[WhiteFideId "13417444"]
[BlackFideId "24161918"]
[WhiteElo "2469"]
[BlackElo "2303"]
[Result "1-0"]
[Round "02"]
[TimeControl "180+2"]
[Date "2023.01.10"]
[WhiteClock "0:02:01"]
[BlackClock "0:00:03"]

1. d4 {[%clk 0:03:00]}  d5 {[%clk 0:02:59]} 2. c4 {[%clk 0:03:01]}  c6 {[%clk 0:02:59]} 3. Nf3 {[%clk 0:03:01]}  Nf6 {[%clk 0:02:59]} 4. Nc3 {[%clk 0:03:02]}  e6 {[%clk 0:02:59]} 5. Bg5 {[%clk 0:03:01]}  Nbd7 {[%clk 0:02:58]} 6. e3 {[%clk 0:03:01]}  Be7 {[%clk 0:02:57]} 7. Rc1 {[%clk 0:03:00]}  O-O {[%clk 0:02:52]} 8. Bd3 {[%clk 0:02:58]}  dxc4 {[%clk 0:02:51]} 9. Bxc4 {[%clk 0:02:59]}  Nd5 {[%clk 0:02:52]} 10. Bxe7 {[%clk 0:02:57]}  Qxe7 {[%clk 0:02:52]} 11. O-O {[%clk 0:02:57]}  Nxc3 {[%clk 0:02:53]} 12. Rxc3 {[%clk 0:02:48]}  e5 {[%clk 0:02:50]} 13. Re1 {[%clk 0:02:46]}  exd4 {[%clk 0:02:30]} 14. exd4 {[%clk 0:02:45]}  Qf6 {[%clk 0:02:18]} 15. Ne5 {[%clk 0:02:42]}  Nb6 {[%clk 0:02:15]} 16. Rf3 {[%clk 0:02:37]}  Qh4 {[%clk 0:01:34]} 17. Bxf7+ {[%clk 0:02:21]}  Kh8 {[%clk 0:01:33]} 18. Bb3 {[%clk 0:02:16]}  Bd7 {[%clk 0:00:27]} 19. Nf7+ {[%clk 0:02:10]}  Kg8 {[%clk 0:00:26]} 20. g3 {[%clk 0:02:01]}  Qg4 {[%clk 0:00:03]} 1-0


[Site "https://www.chess.com"]

[Event "Titled Tuesday Blitz January 10 Early 2023"]
[White "Crevatin, Leo"]
[Black "Rustemov, Alexander"]
[WhiteFideId "1726307"]
[BlackFideId "4119002"]
[WhiteElo "2292"]
[BlackElo "2525"]
[Result "1-0"]
[Round "02"]
[TimeControl "180+2"]
[Date "2023.01.10"]
[WhiteClock "0:00:07"]
[BlackClock "0:00:02"]

1. d4 {[%clk 0:02:59]}  d5 {[%clk 0:02:59]} 2. c4 {[%clk 0:02:59]}  c6 {[%clk 0:02:58]} 3. Nf3 {[%clk 0:03:00]}  Nf6 {[%clk 0:02:58]} 4. Nbd2 {[%clk 0:03:00]}  Bf5 {[%clk 0:02:57]} 5. Nh4 {[%clk 0:02:59]}  Bg6 {[%clk 0:02:50]} 6. Qb3 {[%clk 0:02:57]}  Qc7 {[%clk 0:02:48]} 7. Nxg6 {[%clk 0:02:44]}  hxg6 {[%clk 0:02:47]} 8. g3 {[%clk 0:02:38]}  e6 {[%clk 0:02:46]} 9. Bg2 {[%clk 0:02:38]}  Be7 {[%clk 0:02:43]} 10. e4 {[%clk 0:02:32]}  dxe4 {[%clk 0:02:30]} 11. Nxe4 {[%clk 0:02:33]}  Nxe4 {[%clk 0:02:26]} 12. Bxe4 {[%clk 0:02:34]}  Nd7 {[%clk 0:02:21]} 13. O-O {[%clk 0:02:33]}  Nf6 {[%clk 0:02:19]} 14. Bf3 {[%clk 0:02:31]}  O-O {[%clk 0:02:18]} 15. Bf4 {[%clk 0:02:28]}  Qb6 {[%clk 0:02:14]} 16. Rad1 {[%clk 0:02:25]}  Qxb3 {[%clk 0:02:09]} 17. axb3 {[%clk 0:02:24]}  Rfd8 {[%clk 0:02:10]} 18. Rd3 {[%clk 0:02:07]}  Rd7 {[%clk 0:02:09]} 19. Rfd1 {[%clk 0:02:07]}  Rad8 {[%clk 0:02:09]} 20. Be3 {[%clk 0:02:03]}  a6 {[%clk 0:02:08]} 21. Kf1 {[%clk 0:02:00]}  Ne8 {[%clk 0:01:57]} 22. Ke2 {[%clk 0:01:59]}  Nd6 {[%clk 0:01:43]} 23. g4 {[%clk 0:01:38]}  g5 {[%clk 0:01:31]} 24. Bd2 {[%clk 0:01:13]}  f6 {[%clk 0:01:28]} 25. Ba5 {[%clk 0:01:06]}  Rc8 {[%clk 0:01:26]} 26. Rh1 {[%clk 0:01:03]}  f5 {[%clk 0:01:18]} 27. Re1 {[%clk 0:00:45]}  Kf7 {[%clk 0:01:15]} 28. Kd2 {[%clk 0:00:40]}  Bf6 {[%clk 0:01:13]} 29. d5 {[%clk 0:00:36]}  cxd5 {[%clk 0:01:01]} 30. cxd5 {[%clk 0:00:36]}  e5 {[%clk 0:00:48]} 31. gxf5 {[%clk 0:00:36]}  Nxf5 {[%clk 0:00:49]} 32. Bc3 {[%clk 0:00:36]}  Re8 {[%clk 0:00:46]} 33. Be4 {[%clk 0:00:29]}  g6 {[%clk 0:00:46]} 34. Rc1 {[%clk 0:00:29]}  Rh8 {[%clk 0:00:43]} 35. Rh1 {[%clk 0:00:28]}  Rh4 {[%clk 0:00:39]} 36. f3 {[%clk 0:00:28]}  Nd6 {[%clk 0:00:35]} 37. Ke3 {[%clk 0:00:20]}  g4 {[%clk 0:00:36]} 38. fxg4 {[%clk 0:00:20]}  Rh3+ {[%clk 0:00:35]} 39. Ke2 {[%clk 0:00:16]}  Rh4 {[%clk 0:00:26]} 40. Bg2 {[%clk 0:00:16]}  Rxg4 {[%clk 0:00:24]} 41. Bh3 {[%clk 0:00:17]}  Re4+ {[%clk 0:00:24]} 42. Kd1 {[%clk 0:00:17]}  Rd8 {[%clk 0:00:22]} 43. Rf1 {[%clk 0:00:17]}  Rf4 {[%clk 0:00:23]} 44. Rxf4 {[%clk 0:00:17]}  exf4 {[%clk 0:00:23]} 45. Be6+ {[%clk 0:00:17]}  Kg7 {[%clk 0:00:22]} 46. Rf3 {[%clk 0:00:16]}  g5 {[%clk 0:00:20]} 47. h4 {[%clk 0:00:16]}  Bxc3 {[%clk 0:00:17]} 48. bxc3 {[%clk 0:00:17]}  Kg6 {[%clk 0:00:18]} 49. hxg5 {[%clk 0:00:16]}  Kxg5 {[%clk 0:00:18]} 50. c4 {[%clk 0:00:16]}  b6 {[%clk 0:00:18]} 51. Kc2 {[%clk 0:00:16]}  a5 {[%clk 0:00:18]} 52. Kd3 {[%clk 0:00:17]}  Nb7 {[%clk 0:00:12]} 53. Kd4 {[%clk 0:00:09]}  Nc5 {[%clk 0:00:13]} 54. Ke5 {[%clk 0:00:09]}  Rf8 {[%clk 0:00:12]} 55. Bh3 {[%clk 0:00:08]}  Re8+ {[%clk 0:00:12]} 56. Be6 {[%clk 0:00:07]}  Rf8 {[%clk 0:00:09]} 57. Bh3 {[%clk 0:00:08]}  Rf6 {[%clk 0:00:10]} 58. d6 {[%clk 0:00:03]}  Rf8 {[%clk 0:00:05]} 59. d7 {[%clk 0:00:03]}  Nb7 {[%clk 0:00:04]} 60. Ke6 {[%clk 0:00:03]}  Nc5+ {[%clk 0:00:02]} 61. Ke7 {[%clk 0:00:03]}  Nxd7 {[%clk 0:00:02]} 62. Bxd7 {[%clk 0:00:02]}  Rh8 {[%clk 0:00:02]} 63. Kd6 {[%clk 0:00:02]}  Rh6+ {[%clk 0:00:02]} 64. Kc7 {[%clk 0:00:02]}  Rf6 {[%clk 0:00:02]} 65. Bc6 {[%clk 0:00:03]}  Kg4 {[%clk 0:00:02]} 66. Rf1 {[%clk 0:00:03]}  f3 {[%clk 0:00:02]} 67. Kxb6 {[%clk 0:00:04]}  f2 {[%clk 0:00:01]} 68. c5 {[%clk 0:00:04]}  Kg3 {[%clk 0:00:02]} 69. Kb5 {[%clk 0:00:04]}  Re6 {[%clk 0:00:02]} 70. Bb7 {[%clk 0:00:04]}  Re1 {[%clk 0:00:03]} 71. Rxf2 {[%clk 0:00:03]}  Kxf2 {[%clk 0:00:03]} 72. Kxa5 {[%clk 0:00:03]}  Ke3 {[%clk 0:00:04]} 73. c6 {[%clk 0:00:03]}  Rc1 {[%clk 0:00:02]} 74. Kb6 {[%clk 0:00:04]}  Kd4 {[%clk 0:00:03]} 75. c7 {[%clk 0:00:04]}  Rxc7 {[%clk 0:00:01]} 76. Kxc7 {[%clk 0:00:04]}  Kc3 {[%clk 0:00:02]} 77. Bd5 {[%clk 0:00:05]}  Kb4 {[%clk 0:00:03]} 78. Bc4 {[%clk 0:00:06]}  Ka5 {[%clk 0:00:03]} 79. Kc6 {[%clk 0:00:06]}  Kb4 {[%clk 0:00:03]} 80. Kb6 {[%clk 0:00:06]}  Kc3 {[%clk 0:00:02]} 81. Kc5 {[%clk 0:00:07]} 1-0


[Site "https://www.chess.com"]